Workbook

Sheet Calculadora de Empréstimos
B2: EMPRÉSTIMO UNIVERSITÁRIO | G2: 50,000 € | L2: 2011-05-10
B3: CALCULADORA
B5: É sugerido que o total dos seus pagamentos mensais do empréstimo de estudante não exceda 8% do seu salário anual no primeiro ano.
C7: O seu pagamento mensal combinado atual é de: | F7: =EmpréstimosUniversitários[[#Totals],[Pagamento Mensal Atual]] -> 190.92 € | I7: O seu pagamento mensal agendado combinado é de: | M7: =EmpréstimosUniversitários[[#Totals],[Pagamento Agendado]] -> 328.59 €
C8: Percentagem do rendimento mensal: | F8: =EmpréstimosUniversitários[[#Totals],[Pagamento Mensal Atual]]/RendimentoMensalEstimado -> 4.58% | I8: Percentagem do rendimento mensal: | M8: =EmpréstimosUniversitários[[#Totals],[Pagamento Agendado]]/RendimentoMensalEstimado -> 7.89%
C11: DETALHES GERAIS DO EMPRÉSTIMO | G11: DADOS DE PAGAMENTO DO EMPRÉSTIMO | J11: DETALHES DO PAGAMENTO
C12: Empréstimo Nº. | D12: Credor | E12: Montante do Empréstimo | F12: Taxa de Juro Anual | G12: Data de Início | H12: Duração (Anos) | I12: Data de Fim | J12: Pagamento Mensal Atual | K12: Total de Juros | L12: Pagamento Agendado | M12: Pagamento Anual
C13: 10998M88 | D13: Credor 1 | E13: 10,000.00 € | F13: 5.00% | G13: 2011-04-01 | H13: 10 | I13: =IF(AND(EmpréstimosUniversitários[[#This Row],[Data de Início]]>0,EmpréstimosUniversitários[[#This Row],[Duração (Anos)]]>0),EDATE(EmpréstimosUniversitários[[#This Row],[Data de Início]],EmpréstimosUniversitários[[#This Row],[Duração (Anos)]]*12),"") -> 2021-04-01 | J13: =IF(AND(InícioDeEmpréstimoLHoje,COUNT(EmpréstimosUniversitários[[#This Row],[Montante do Empréstimo]]:EmpréstimosUniversitários[[#This Row],[Duração (Anos)]])=4,EmpréstimosUniversitários[[#This Row],[Data de Início]]<TODAY()),PMT(EmpréstimosUniversitários[[#This Row],[Taxa de Juro Anual]]/12,EmpréstimosUniversitários[[#This Row],[Duração (Anos)]]*12,-EmpréstimosUniversitários[[#This Row],[Montante do Empréstimo]],0,0),"") -> 106.07 € | K13: =IFERROR((EmpréstimosUniversitários[[#This Row],[Pagamento Agendado]]*(EmpréstimosUniversitários[[#This Row],[Duração (Anos)]]*12))-EmpréstimosUniversitários[[#This Row],[Montante do Empréstimo]],"") -> 2,727.86 € | L13: =IF(COUNTA(EmpréstimosUniversitários[[#This Row],[Montante do Empréstimo]]:EmpréstimosUniversitários[[#This Row],[Duração (Anos)]])<>4,"",PMT(EmpréstimosUniversitários[[#This Row],[Taxa de Juro Anual]]/12,EmpréstimosUniversitários[[#This Row],[Duração (Anos)]]*12,-EmpréstimosUniversitários[[#This Row],[Montante do Empréstimo]],0,0)) -> 106.07 € | M13: =IFERROR(EmpréstimosUniversitários[[#This Row],[Pagamento Agendado]]*12,"") -> 1,272.79 €
C14: 20987N87 | D14: Credor 2 | E14: 8,000.00 € | F14: 5.00% | G14: 2011-05-01 | H14: 10 | I14: =IF(AND(EmpréstimosUniversitários[[#This Row],[Data de Início]]>0,EmpréstimosUniversitários[[#This Row],[Duração (Anos)]]>0),EDATE(EmpréstimosUniversitários[[#This Row],[Data de Início]],EmpréstimosUniversitários[[#This Row],[Duração (Anos)]]*12),"") -> 2021-05-01 | J14: =IF(AND(InícioDeEmpréstimoLHoje,COUNT(EmpréstimosUniversitários[[#This Row],[Montante do Empréstimo]]:EmpréstimosUniversitários[[#This Row],[Duração (Anos)]])=4,EmpréstimosUniversitários[[#This Row],[Data de Início]]<TODAY()),PMT(EmpréstimosUniversitários[[#This Row],[Taxa de Juro Anual]]/12,EmpréstimosUniversitários[[#This Row],[Duração (Anos)]]*12,-EmpréstimosUniversitários[[#This Row],[Montante do Empréstimo]],0,0),"") -> 84.85 € | K14: =IFERROR((EmpréstimosUniversitários[[#This Row],[Pagamento Agendado]]*(EmpréstimosUniversitários[[#This Row],[Duração (Anos)]]*12))-EmpréstimosUniversitários[[#This Row],[Montante do Empréstimo]],"") -> 2,182.29 € | L14: =IF(COUNTA(EmpréstimosUniversitários[[#This Row],[Montante do Empréstimo]]:EmpréstimosUniversitários[[#This Row],[Duração (Anos)]])<>4,"",PMT(EmpréstimosUniversitários[[#This Row],[Taxa de Juro Anual]]/12,EmpréstimosUniversitários[[#This Row],[Duração (Anos)]]*12,-EmpréstimosUniversitários[[#This Row],[Montante do Empréstimo]],0,0)) -> 84.85 € | M14: =IFERROR(EmpréstimosUniversitários[[#This Row],[Pagamento Agendado]]*12,"") -> 1,018.23 €
C15: 36785LM | D15: Credor 3 | E15: 6,000.00 € | F15: 4.50% | G15: 2012-03-01 | H15: 10 | I15: =IF(AND(EmpréstimosUniversitários[[#This Row],[Data de Início]]>0,EmpréstimosUniversitários[[#This Row],[Duração (Anos)]]>0),EDATE(EmpréstimosUniversitários[[#This Row],[Data de Início]],EmpréstimosUniversitários[[#This Row],[Duração (Anos)]]*12),"") -> 2022-03-01 | J15: =IF(AND(InícioDeEmpréstimoLHoje,COUNT(EmpréstimosUniversitários[[#This Row],[Montante do Empréstimo]]:EmpréstimosUniversitários[[#This Row],[Duração (Anos)]])=4,EmpréstimosUniversitários[[#This Row],[Data de Início]]<TODAY()),PMT(EmpréstimosUniversitários[[#This Row],[Taxa de Juro Anual]]/12,EmpréstimosUniversitários[[#This Row],[Duração (Anos)]]*12,-EmpréstimosUniversitários[[#This Row],[Montante do Empréstimo]],0,0),"") ->  | K15: =IFERROR((EmpréstimosUniversitários[[#This Row],[Pagamento Agendado]]*(EmpréstimosUniversitários[[#This Row],[Duração (Anos)]]*12))-EmpréstimosUniversitários[[#This Row],[Montante do Empréstimo]],"") -> 1,461.97 € | L15: =IF(COUNTA(EmpréstimosUniversitários[[#This Row],[Montante do Empréstimo]]:EmpréstimosUniversitários[[#This Row],[Duração (Anos)]])<>4,"",PMT(EmpréstimosUniversitários[[#This Row],[Taxa de Juro Anual]]/12,EmpréstimosUniversitários[[#This Row],[Duração (Anos)]]*12,-EmpréstimosUniversitários[[#This Row],[Montante do Empréstimo]],0,0)) -> 62.18 € | M15: =IFERROR(EmpréstimosUniversitários[[#This Row],[Pagamento Agendado]]*12,"") -> 746.20 €
C16: 765R43 | D16: Credor 4 | E16: 4,000.00 € | F16: 5.00% | G16: 2012-05-01 | H16: 5 | I16: =IF(AND(EmpréstimosUniversitários[[#This Row],[Data de Início]]>0,EmpréstimosUniversitários[[#This Row],[Duração (Anos)]]>0),EDATE(EmpréstimosUniversitários[[#This Row],[Data de Início]],EmpréstimosUniversitários[[#This Row],[Duração (Anos)]]*12),"") -> 2017-05-01 | J16: =IF(AND(InícioDeEmpréstimoLHoje,COUNT(EmpréstimosUniversitários[[#This Row],[Montante do Empréstimo]]:EmpréstimosUniversitários[[#This Row],[Duração (Anos)]])=4,EmpréstimosUniversitários[[#This Row],[Data de Início]]<TODAY()),PMT(EmpréstimosUniversitários[[#This Row],[Taxa de Juro Anual]]/12,EmpréstimosUniversitários[[#This Row],[Duração (Anos)]]*12,-EmpréstimosUniversitários[[#This Row],[Montante do Empréstimo]],0,0),"") ->  | K16: =IFERROR((EmpréstimosUniversitários[[#This Row],[Pagamento Agendado]]*(EmpréstimosUniversitários[[#This Row],[Duração (Anos)]]*12))-EmpréstimosUniversitários[[#This Row],[Montante do Empréstimo]],"") -> 529.10 € | L16: =IF(COUNTA(EmpréstimosUniversitários[[#This Row],[Montante do Empréstimo]]:EmpréstimosUniversitários[[#This Row],[Duração (Anos)]])<>4,"",PMT(EmpréstimosUniversitários[[#This Row],[Taxa de Juro Anual]]/12,EmpréstimosUniversitários[[#This Row],[Duração (Anos)]]*12,-EmpréstimosUniversitários[[#This Row],[Montante do Empréstimo]],0,0)) -> 75.48 € | M16: =IFERROR(EmpréstimosUniversitários[[#This Row],[Pagamento Agendado]]*12,"") -> 905.82 €
C17: TOTAIS | E17: =SUBTOTAL(109,EmpréstimosUniversitários[Montante do Empréstimo]) -> 28,000.00 € | J17: =SUBTOTAL(109,EmpréstimosUniversitários[Pagamento Mensal Atual]) -> 190.92 € | K17: =SUBTOTAL(109,EmpréstimosUniversitários[Total de Juros]) -> 6,901.21 € | L17: =SUBTOTAL(109,EmpréstimosUniversitários[Pagamento Agendado]) -> 328.59 € | M17: =SUBTOTAL(109,EmpréstimosUniversitários[Pagamento Anual]) -> 3,943.03 €
C18: Médias | E18: =AVERAGE(EmpréstimosUniversitários[Montante do Empréstimo]) -> 7,000.00 € | F18: =AVERAGE(EmpréstimosUniversitários[Taxa de Juro Anual]) -> 4.88% | K18: =AVERAGE(EmpréstimosUniversitários[Total de Juros]) -> 1,725.30 € | M18: =AVERAGE(EmpréstimosUniversitários[Pagamento Anual]) -> 985.76 €
K20: Total Consolidado do Pagamento do Empréstimo: | M20: =EmpréstimosUniversitários[[#Totals],[Montante do Empréstimo]]+EmpréstimosUniversitários[[#Totals],[Total de Juros]] -> 34,901.21 €
K22: Estimativa do Rendimento Mensal Após a Licenciatura: | M22: =(RendimentoAnualEstimado/12) -> 4,166.67 €
